fUSD/lending_fUSD_20251117
["ID","MTS","AMOUNT","RATE_DAILY","PERIOD"]
[394259741,1763411454809,-151.0,0.00040459,120]
[394259742,1763411454818,-151.0,0.00040459,120]
[394259743,1763411454828,-151.0,0.00040459,60]
[394259744,1763411454837,-151.0,0.00040459,120]
[394259745,1763411454846,-503.591734,0.00040459,120]
[394259746,1763411454856,-151.0,0.00040459,120]
[394259747,1763411454866,-503.591734,0.00040459,120]
[394259748,1763411454875,-503.591734,0.00040459,120]
[394259749,1763411454885,-503.591734,0.00040459,120]
[394259750,1763411454895,-151.0,0.00040459,120]
[394259751,1763411454904,-151.0,0.00040459,120]
[394259752,1763411454914,-151.0,0.00040459,120]
[394259753,1763411454924,-151.0,0.00040459,120]
[394259754,1763411454935,-166.349871,0.00040459,120]
[394259755,1763411454945,-151.0,0.00040459,120]
[394259756,1763411454954,-151.0,0.00040459,120]
[394259757,1763411454964,-151.0,0.00040459,120]
[394259758,1763411454973,-151.0,0.00040459,120]
[394259760,1763411454983,-151.0,0.00040459,90]
[394259761,1763411454992,-151.0,0.00040459,120]
[394259762,1763411455002,-151.0,0.00040459,120]
[394259763,1763411455011,-151.0,0.00040459,120]
[394259764,1763411455020,-151.0,0.00040459,120]
[394259765,1763411455029,-151.0,0.00040459,120]
[394259766,1763411455039,-151.0,0.00040459,120]
[394259767,1763411455048,-151.0,0.00040459,120]
[394259768,1763411455057,-151.0,0.00040459,120]
[394259769,1763411455066,-154.28238,0.00040459,120]
[394259770,1763411455075,-151.0,0.00040459,120]
[394259771,1763411455084,-151.0,0.00040459,120]
[394259772,1763411455093,-151.0,0.00040459,120]
[394259773,1763411455104,-151.0,0.00040459,120]
[394259774,1763411455115,-151.0,0.00040459,120]
[394259775,1763411455124,-151.0,0.00040459,120]
[394259776,1763411455134,-151.0,0.00040459,15]
[394259777,1763411455143,-151.0,0.00040459,120]
[394259778,1763411455154,-151.0,0.00040459,15]
[394259779,1763411455163,-151.0,0.00040459,120]
[394259780,1763411455172,-151.0,0.00040459,15]
[394259781,1763411455185,-151.0,0.00040459,120]
[394259782,1763411455195,-278.989456,0.00040459,120]
[394259783,1763411455204,-151.0,0.00040459,120]
[394259784,1763411455214,-151.0,0.00040459,120]
[394259785,1763411455223,-212.022639,0.00040459,120]
[394259786,1763411455232,-151.0,0.00040459,120]
[394259787,1763411455241,-151.0,0.00040459,120]
[394259788,1763411455251,-151.0,0.00040459,120]
[394259789,1763411455260,-154.116039,0.00040459,120]
[394259790,1763411455269,-151.0,0.00040459,120]
[394259791,1763411455279,-151.0,0.00040459,120]
[394259792,1763411455288,-253.160735,0.00040459,120]
[394259793,1763411455298,-163.506314,0.00040459,120]
[394259794,1763411455307,-282.750367,0.00040459,90]
[394259795,1763411455316,-282.750367,0.00040459,90]
[394259796,1763411455325,-282.750367,0.00040459,90]
[394259797,1763411455334,-282.750367,0.00040459,90]
[394259798,1763411455343,-151.0,0.00040459,120]
[394259799,1763411455353,-151.0,0.00040459,120]
[394259800,1763411455362,-151.0,0.00040459,120]
[394259801,1763411455372,-283.862358,0.00040459,120]
[394259802,1763411455381,-283.862358,0.00040459,120]
[394259803,1763411455391,-283.862358,0.00040459,120]
[394259804,1763411455400,-283.862358,0.00040459,120]
[394259805,1763411455410,-151.0,0.00040459,120]
[394259806,1763411455419,-151.0,0.00040459,120]
[394259807,1763411455429,-151.0,0.00040459,120]
[394259808,1763411455443,-151.0,0.00040459,120]
[394259809,1763411455452,-389.021772,0.00040459,120]
[394259810,1763411455461,-151.0,0.00040459,120]
[394259811,1763411455471,-193.878161,0.00040459,120]
[394259812,1763411455480,-389.021772,0.00040459,120]
[394259813,1763411455490,-151.0,0.00040459,120]
[394259814,1763411455499,-389.021772,0.00040459,120]
[394259815,1763411455508,-151.0,0.00040459,120]
[394259816,1763411455517,-389.021772,0.00040459,120]
[394259817,1763411455526,-159.528822,0.00040459,120]
[394259818,1763411455535,-159.528822,0.00040459,120]
[394259819,1763411455544,-151.0,0.00040459,120]
[394259820,1763411455553,-159.528822,0.00040459,120]
[394259821,1763411455563,-159.528822,0.00040459,120]
[394259822,1763411455572,-230.083556,0.00040459,120]
[394259823,1763411455582,-230.083556,0.00040459,120]
[394259824,1763411455592,-230.083556,0.00040459,120]
[394259825,1763411455602,-230.083556,0.00040459,120]
[394259826,1763411455612,-151.0,0.00040459,120]
[394259827,1763411455621,-151.0,0.00040459,120]
[394259828,1763411455630,-151.0,0.00040459,120]
[394259829,1763411455640,-151.0,0.00040459,120]
[394259830,1763411455650,-151.0,0.00040459,120]
[394259831,1763411455660,-151.0,0.00040459,120]
[394259832,1763411455670,-151.0,0.00040459,120]
[394259833,1763411455680,-273.756743,0.00040459,120]
[394259834,1763411455692,-151.0,0.00040459,120]
[394259835,1763411455702,-151.0,0.00040459,120]
[394259836,1763411455773,-273.756743,0.00040459,120]
[394259837,1763411455782,-151.0,0.00040459,120]
[394259838,1763411455792,-273.756743,0.00040459,120]
[394259839,1763411455801,-273.756743,0.00040459,120]
[394259840,1763411455811,-151.0,0.00040459,120]
[394259841,1763411455821,-151.0,0.00040459,120]
[394259842,1763411455830,-151.0,0.00040459,120]
[394259843,1763411455840,-151.0,0.00040459,120]
[394259844,1763411455849,-151.0,0.00040459,120]
[394259845,1763411455860,-151.0,0.00040459,120]
[394259846,1763411455870,-151.0,0.00040459,120]
[394259847,1763411455880,-151.0,0.00040459,120]
[394259848,1763411455889,-151.0,0.00040459,120]
[394259849,1763411455899,-1215.284335,0.00040459,28]
[394259850,1763411455908,-1215.284335,0.00040459,28]
[394259851,1763411455918,-1215.284335,0.00040459,28]
[394259852,1763411455927,-1215.284335,0.00040459,28]
[394259853,1763411455940,-151.0,0.00040459,120]
[394259854,1763411455949,-151.0,0.00040459,120]
[394259855,1763411455960,-151.0,0.00040459,120]
[394259856,1763411455969,-161.148285,0.00040459,120]
[394259857,1763411455979,-161.148285,0.00040459,120]
[394259858,1763411455988,-161.148285,0.00040459,120]
[394259859,1763411455998,-161.148285,0.00040459,120]
[394259860,1763411456008,-1000.0,0.00040473,5]
[394259861,1763411456018,-150.0,0.00040474,7]
[394259862,1763411456027,-150.0,0.00040474,7]
[394259863,1763411456036,-150.0,0.00040494,7]
[394259864,1763411456046,-150.0,0.00040504,7]
[394259865,1763411456056,-150.0,0.00040504,7]
[394259866,1763411456066,-695.0,0.00040516,2]
[394259867,1763411456076,-151.0,0.00040519,14]
[394259868,1763411456085,-151.0,0.00040519,14]
[394259869,1763411456095,-607.52246125,0.00040521,5]
[394259870,1763411456107,-150.0,0.00040547,7]
[394259871,1763411456116,-1000.0,0.00040548,14]
[394259872,1763411456126,-824.93912498,0.00040557,15]
[394259873,1763411456136,-3223.64086,0.0004057,5]
[394259874,1763411456147,-1310.457228,0.0004057,120]
[394259875,1763411456156,-151.0,0.0004057,120]
[394259876,1763411456165,-1310.457228,0.0004057,120]
[394259877,1763411456173,-356.319726,0.0004057,120]
[394259878,1763411456188,-151.0,0.0004057,120]
[394259879,1763411456197,-356.319726,0.0004057,120]
[394259880,1763411456206,-1310.457228,0.0004057,120]
[394259881,1763411456215,-356.319726,0.0004057,120]
[394259882,1763411456224,-1310.457224,0.0004057,120]
[394259883,1763411456233,-356.31973,0.0004057,120]
[394259884,1763411456242,-151.0,0.0004057,120]
[394259885,1763411456251,-199.815025,0.0004057,120]
[394259886,1763411456260,-151.0,0.0004057,120]
[394259887,1763411456269,-199.815025,0.0004057,120]
[394259888,1763411456278,-199.815025,0.0004057,120]
[394259889,1763411456287,-151.0,0.0004057,120]
[394259890,1763411456296,-199.815034,0.0004057,120]
[394259891,1763411456305,-151.0,0.0004057,120]
[394259892,1763411456316,-151.0,0.0004057,120]
[394259893,1763411456325,-151.0,0.0004057,120]
[394259894,1763411456335,-151.0,0.0004057,120]
[394259895,1763411456344,-435.643096,0.0004057,120]
[394259896,1763411456354,-435.643096,0.0004057,120]
[394259897,1763411456363,-435.643096,0.0004057,120]
[394259898,1763411456372,-435.643087,0.0004057,120]
[394259899,1763411456381,-151.0,0.0004057,120]
[394259900,1763411456391,-500.0,0.00040573,5]
[394259901,1763411456400,-695.0,0.00040574,7]
[394259902,1763411456409,-434.61,0.00040588,30]
[394259903,1763411456419,-1400.0,0.0004061,5]
[394259904,1763411456428,-199.181814,0.00040654,120]
[394259905,1763411456440,-226.565403,0.00040654,120]
[394259906,1763411456449,-226.565403,0.00040654,120]
[394259907,1763411456459,-422.358231,0.00040654,120]
[394259908,1763411456468,-151.0,0.00040654,120]
[394259909,1763411456477,-226.565403,0.00040654,120]
[394259910,1763411456487,-422.358231,0.00040654,120]
[394259911,1763411456496,-226.565403,0.00040654,120]
[394259912,1763411456507,-422.358231,0.00040654,120]
[394259913,1763411456517,-422.358231,0.00040654,120]
[394259914,1763411456527,-151.0,0.00040654,120]
[394259915,1763411456535,-151.0,0.00040654,120]
[394259916,1763411456544,-157.806835,0.00040654,120]
[394259917,1763411456554,-151.0,0.00040654,120]
[394259918,1763411456563,-151.0,0.00040654,120]
[394259919,1763411456572,-177.657138,0.00040654,120]
[394259920,1763411456580,-213.387703,0.00040654,120]
[394259921,1763411456588,-213.387703,0.00040654,120]
[394259922,1763411456597,-213.387703,0.00040654,120]
[394259923,1763411456606,-213.387703,0.00040654,120]
[394259924,1763411456615,-11797.0,0.00040654,5]
[394259925,1763411456624,-150.0,0.00040658,7]
[394259926,1763411456633,-150.0,0.00040671,7]
[394259927,1763411456642,-161.6,0.00040679,2]
[394259928,1763411456651,-169.45,0.00040685,2]
[394259929,1763411456660,-150.0,0.00040694,7]
[394259930,1763411456670,-824.93912498,0.00040703,15]
[394259931,1763411456680,-150.0,0.00040713,7]
[394259932,1763411456692,-150.0,0.0004073,7]
[394259933,1763411456701,-151.0,0.00040745,2]
[394259934,1763411456711,-150.0,0.00040745,7]
[394259935,1763411456720,-150.0,0.00040745,7]
[394259936,1763411456730,-200.0,0.00040776,2]
[394259937,1763411456739,-200.0,0.00040776,2]
[394259938,1763411456748,-785.0,0.00040786,2]
[394259939,1763411456757,-1000.0,0.0004082,90]
[394259940,1763411456766,-1000.0,0.0004082,90]
[394259941,1763411456775,-1000.0,0.0004082,90]
[394259942,1763411456784,-239.859,0.0004082,90]
[394259943,1763411456793,-488.0,0.00040821,8]
[394259944,1763411456803,-1523.67,0.00040821,2]
[394259945,1763411456812,-1000.0,0.00040822,14]
[394259946,1763411456820,-159.17496958,0.00040822,2]
[394259947,1763411456829,-150.0,0.00040822,7]
[394259948,1763411456840,-150.0,0.0004084,7]
[394259949,1763411456849,-824.93912498,0.00040849,15]
[394259950,1763411456858,-166.66,0.0004086,30]
[394259951,1763411456867,-434.64,0.00040862,30]
[394259952,1763411456877,-500.0,0.00040868,5]
[394259953,1763411456886,-468.65005224,0.00040895,30]
[394259954,1763411456895,-151.0,0.00040896,14]
[394259955,1763411456905,-300.0,0.00040897,10]
[394259956,1763411456914,-500.0,0.00040898,30]
[394259957,1763411456924,-150.0,0.00040898,30]
[394259958,1763411456935,-500.0,0.00040898,30]
[394259959,1763411456944,-500.0,0.00040898,7]
[394259960,1763411456954,-500.0,0.00040898,30]
[394259961,1763411456963,-500.0,0.00040898,30]
[394259962,1763411456972,-500.0,0.00040898,30]
[394259963,1763411456982,-500.0,0.00040898,30]
[394259964,1763411456991,-500.0,0.00040898,30]
[394259965,1763411457000,-1523.67,0.00040898,2]
[394259966,1763411457010,-151.0,0.00040899,120]
[394259967,1763411457019,-151.0,0.00040899,120]
[394259968,1763411457028,-151.0,0.00040899,120]
[394259969,1763411457037,-151.0,0.00040899,120]
[394259970,1763411457046,-158.461792,0.00040899,120]
[394259971,1763411457055,-151.0,0.00040899,120]
[394259972,1763411457064,-151.0,0.00040899,120]
[394259973,1763411457074,-151.0,0.00040899,120]
[394259974,1763411457084,-151.0,0.00040899,120]
[394259975,1763411457093,-151.0,0.00040899,120]
[394259976,1763411457104,-151.0,0.00040899,120]
[394259977,1763411457116,-151.0,0.00040899,120]
[394259978,1763411457125,-151.0,0.00040899,120]
[394259979,1763411457135,-151.0,0.00040899,120]
[394259980,1763411457144,-151.0,0.00040899,120]
[394259981,1763411457155,-152.508426,0.00040899,120]
[394259982,1763411457164,-151.0,0.00040899,120]
[394259983,1763411457173,-151.0,0.00040899,120]
[394259984,1763411457185,-151.0,0.00040899,30]
[394259985,1763411457194,-151.0,0.00040899,120]
[394259986,1763411457204,-151.0,0.00040899,120]
[394259987,1763411457213,-151.0,0.00040899,120]
[394259988,1763411457222,-503.591734,0.00040899,120]
[394259989,1763411457231,-151.0,0.00040899,120]
[394259990,1763411457241,-503.591734,0.00040899,120]
[394259991,1763411457250,-503.591734,0.00040899,120]
[394259992,1763411457259,-503.591734,0.00040899,120]
[394259993,1763411457269,-151.0,0.00040899,120]
[394259994,1763411457278,-151.0,0.00040899,120]
[394259995,1763411457288,-151.0,0.00040899,120]
[394259996,1763411457298,-151.0,0.00040899,120]
[394259997,1763411457307,-151.0,0.00040899,120]
[394259998,1763411457317,-151.0,0.00040899,120]
[394259999,1763411457326,-151.0,0.00040899,120]
[394260000,1763411457336,-151.0,0.00040899,90]
[394260001,1763411457345,-254.831476,0.00040899,120]
[394260002,1763411457354,-151.0,0.00040899,120]
[394260003,1763411457363,-151.0,0.00040899,120]
[394260004,1763411457372,-151.0,0.00040899,120]
[394260005,1763411457380,-151.0,0.00040899,120]
[394260006,1763411457389,-151.0,0.00040899,120]
[394260007,1763411457398,-151.0,0.00040899,120]
[394260008,1763411457407,-151.0,0.00040899,120]
[394260009,1763411457416,-151.0,0.00040899,120]
[394260010,1763411457425,-151.0,0.00040899,120]
[394260011,1763411457435,-252.616842,0.00040899,120]
[394260012,1763411457444,-151.0,0.00040899,120]
[394260013,1763411457453,-151.0,0.00040899,15]
[394260014,1763411457463,-151.0,0.00040899,120]
[394260015,1763411457472,-151.0,0.00040899,15]
[394260016,1763411457483,-159.569124,0.00040899,120]
[394260017,1763411457492,-151.0,0.00040899,15]
[394260018,1763411457501,-151.0,0.00040899,120]
[394260019,1763411457510,-151.0,0.00040899,120]
[394260020,1763411457520,-151.0,0.00040899,120]
[394260021,1763411457528,-190.663465,0.00040899,120]
[394260022,1763411457538,-151.0,0.00040899,120]
[394260023,1763411457548,-151.0,0.00040899,120]
[394260024,1763411457557,-151.0,0.00040899,120]
[394260025,1763411457567,-151.0,0.00040899,120]
[394260026,1763411457576,-189.883674,0.00040899,120]
[394260027,1763411457585,-151.0,0.00040899,120]
[394260028,1763411457595,-151.0,0.00040899,120]
[394260029,1763411457604,-736.11,0.000409,14]
[394260030,1763411457614,-150.0,0.000409,30]
[394260031,1763411457623,-500.0,0.000409,14]
[394260032,1763411457632,-865.0,0.00040904,120]
[394260033,1763411457642,-151.0,0.00040908,120]
[394260034,1763411457650,-151.0,0.00040908,120]
[394260035,1763411457658,-151.0,0.00040908,120]
[394260036,1763411457667,-232.95496,0.00040908,120]
[394260037,1763411457677,-151.0,0.00040908,120]
[394260038,1763411457686,-151.0,0.00040908,120]
[394260039,1763411457696,-151.0,0.00040908,120]
[394260040,1763411457705,-500.0,0.00040908,30]
[394260041,1763411457714,-300.0,0.00040908,30]
[394260042,1763411457723,-151.0,0.00040908,120]
[394260043,1763411457733,-151.0,0.00040908,120]
[394260044,1763411457742,-500.0,0.00040908,7]
[394260045,1763411457752,-500.0,0.00040908,7]
[394260046,1763411457761,-500.0,0.00040908,7]
[394260047,1763411457771,-172.857707,0.00040908,120]
[394260048,1763411457780,-151.0,0.00040908,120]
[394260049,1763411457790,-151.0,0.00040908,120]
[394260050,1763411457799,-151.0,0.00040908,120]
[394260051,1763411457809,-151.0,0.00040908,120]
[394260052,1763411457818,-151.0,0.00040908,120]
[394260053,1763411457829,-151.0,0.00040908,120]
[394260054,1763411457840,-151.0,0.00040908,120]
[394260055,1763411457849,-151.0,0.00040908,120]
[394260056,1763411457860,-500.0,0.00040908,30]
[394260057,1763411457871,-151.0,0.00040908,10]
[394260058,1763411457880,-151.0,0.00040908,120]
[394260059,1763411457890,-151.0,0.00040908,120]
[394260060,1763411457899,-151.0,0.00040908,120]
[394260061,1763411457909,-151.0,0.00040908,120]
[394260062,1763411457918,-151.0,0.00040908,120]
[394260063,1763411457928,-151.0,0.00040908,120]
[394260064,1763411457939,-151.0,0.00040908,120]
[394260065,1763411457949,-151.0,0.00040908,120]
[394260066,1763411457959,-283.132795,0.00040908,120]
[394260067,1763411457968,-151.0,0.00040908,120]
[394260068,1763411457978,-151.0,0.00040908,120]
[394260069,1763411457987,-500.0,0.00040908,30]
[394260070,1763411457996,-500.0,0.00040908,30]
[394260071,1763411458005,-500.0,0.00040908,30]
[394260072,1763411458015,-500.0,0.00040908,30]
[394260073,1763411458025,-500.0,0.00040908,30]
[394260074,1763411458035,-500.0,0.00040908,30]
[394260075,1763411458044,-500.0,0.00040908,30]
[394260076,1763411458054,-500.0,0.00040908,30]
[394260077,1763411458064,-500.0,0.00040908,30]
[394260078,1763411458074,-500.0,0.00040908,30]
[394260079,1763411458083,-500.0,0.00040918,30]
[394260080,1763411458093,-500.0,0.00040918,30]
[394260081,1763411458104,-500.0,0.00040918,30]
[394260082,1763411458115,-500.0,0.00040918,120]
[394260083,1763411458124,-500.0,0.00040918,120]
[394260084,1763411458133,-159.17496954,0.00040971,2]
[394260085,1763411458144,-506.22387171,0.00040973,5]
[394260086,1763411458157,-50000.0,0.0004098,120]
[394260087,1763411458167,-150.0,0.00040986,7]
[394260088,1763411458177,-214.81507242,0.00040986,7]
[394260089,1763411458187,-220.57067098,0.00040986,7]
[394260090,1763411458196,-210.22339802,0.00040986,7]
[394260091,1763411458206,-243.99883473,0.00040986,7]
[394260092,1763411458215,-276.09837656,0.00040986,7]
[394260093,1763411458224,-150.0,0.00040986,7]
[394260094,1763411458234,-150.0,0.00040986,7]
[394260095,1763411458243,-150.0,0.00040986,7]
[394260096,1763411458252,-150.0,0.00040986,7]
[394260097,1763411458262,-150.0,0.00040986,7]
[394260098,1763411458271,-150.0,0.00040986,7]
[394260099,1763411458280,-824.93912498,0.00040995,15]
[394260100,1763411458291,-234.97614728,0.00040995,120]
[394260101,1763411458301,-181.61613088,0.00040995,120]
[394260102,1763411458310,-152.22,0.00040995,120]
[394260103,1763411458320,-500.0,0.00040999,7]
[394260104,1763411458329,-247.69333033,0.00040999,30]
[394260105,1763411458339,-500.0,0.00040999,30]
[394260106,1763411458350,-500.0,0.00040999,30]
[394260107,1763411458359,-50000.0,0.00041,42]
[394260108,1763411458369,-164.0,0.00041,2]
[394260109,1763411458379,-178.0,0.00041,2]
[394260110,1763411458388,-1010.62245632,0.00041,30]
[394260111,1763411458398,-785.0,0.00041005,120]
[394260112,1763411458408,-400.0,0.00041024,7]
[394260113,1763411458417,-151.0,0.00041037,120]
[394260114,1763411458427,-151.0,0.00041037,120]
[394260115,1763411458438,-500.0,0.00041037,7]
[394260116,1763411458448,-500.0,0.00041037,7]
[394260117,1763411458457,-271.160532,0.00041037,120]
[394260118,1763411458467,-151.0,0.00041037,120]
[394260119,1763411458477,-500.0,0.00041037,30]
[394260120,1763411458487,-525.92146982,0.00041037,30]
[394260121,1763411458500,-500.0,0.00041037,30]
[394260122,1763411458510,-500.0,0.00041037,30]
[394260124,1763411458520,-1523.67,0.00041037,2]
[394260125,1763411458529,-262.037975,0.00041038,120]
[394260126,1763411458538,-151.0,0.00041038,120]
[394260127,1763411458548,-151.0,0.00041038,120]
[394260128,1763411458558,-151.0,0.00041038,120]
[394260129,1763411458568,-8128.45946656,0.00041065,120]
[394260130,1763411458578,-1187.44652285,0.00041084,30]
[394260131,1763411458588,-1187.44652286,0.00041084,30]
[394260132,1763411458598,-151.0,0.00041092,14]
[394260133,1763411458608,-500.0,0.00041094,7]
[394260134,1763411458617,-500.0,0.00041094,7]
[394260135,1763411458626,-500.0,0.00041094,7]
[394260136,1763411458636,-500.0,0.00041094,7]
[394260137,1763411458645,-500.0,0.00041094,7]
[394260138,1763411458655,-500.0,0.00041094,7]
[394260140,1763411458664,-500.0,0.00041094,7]
[394260141,1763411458674,-500.0,0.00041094,7]
[394260142,1763411458684,-500.0,0.00041094,7]
[394260143,1763411458693,-500.0,0.00041094,7]
[394260144,1763411458703,-500.0,0.00041094,7]
[394260145,1763411458712,-392.28556798,0.00041094,7]
[394260146,1763411458722,-1523.67,0.00041094,2]
[394260147,1763411458731,-1523.67,0.00041094,2]
[394260148,1763411458745,-1523.67,0.00041094,2]
[394260149,1763411458755,-1523.67,0.00041094,2]
[394260150,1763411458765,-1523.67,0.00041094,2]
[394260151,1763411458775,-1523.67,0.00041094,2]
[394260152,1763411458785,-1523.67,0.00041094,2]
[394260153,1763411458796,-1523.67,0.00041094,2]
[394260154,1763411458806,-1523.67,0.00041094,2]
[394260155,1763411458816,-1523.67,0.00041094,2]
[394260156,1763411458826,-1523.75103988,0.00041094,2]
[394260157,1763411458836,-151.630854,0.00041095,30]
[394260158,1763411458846,-270.753616,0.00041095,30]
[394260159,1763411458856,-215.40338,0.00041095,30]
[394260160,1763411458866,-215.40338,0.00041095,30]
[394260161,1763411458875,-270.753615,0.00041095,30]
[394260162,1763411458886,-215.40338,0.00041095,30]
[394260163,1763411458896,-270.753615,0.00041095,30]
[394260164,1763411458907,-270.753615,0.00041095,30]
[394260165,1763411458917,-452.90794881,0.00041095,30]
[394260166,1763411458927,-400.0,0.00041095,30]
[394260167,1763411458942,-312.24178193,0.00041095,30]
[394260168,1763411458953,-403.12151063,0.00041095,30]
[394260169,1763411458963,-284.79962309,0.00041095,30]
[394260170,1763411458973,-500.0,0.00041095,30]
[394260171,1763411458983,-500.0,0.00041095,30]
[394260172,1763411458993,-158.888172,0.00041095,30]
[394260173,1763411459003,-176.44623167,0.00041095,30]
[394260174,1763411459013,-500.0,0.00041095,30]
[394260175,1763411459023,-372.27321512,0.00041095,30]
[394260176,1763411459033,-214.75919869,0.00041095,30]
[394260177,1763411459043,-500.0,0.00041095,30]
[394260178,1763411459053,-500.0,0.00041095,30]
[394260179,1763411459063,-500.0,0.00041095,30]
[394260180,1763411459073,-204.36851434,0.00041095,30]
[394260181,1763411459083,-500.0,0.00041095,30]
[394260182,1763411459094,-500.0,0.00041095,30]
[394260183,1763411459104,-198.28160931,0.00041095,30]
[394260184,1763411459118,-511.79176183,0.00041095,30]
[394260185,1763411459132,-500.0,0.00041095,30]
[394260186,1763411459142,-435.3360248,0.00041095,30]
[394260187,1763411459155,-500.0,0.00041095,30]
[394260188,1763411459165,-500.0,0.00041095,30]
[394260189,1763411459175,-507.06524451,0.00041095,30]
[394260190,1763411459186,-500.0,0.00041095,30]
[394260191,1763411459196,-400.0,0.00041095,30]
[394260192,1763411459422,-500.0,0.00041095,30]
[394260193,1763411459433,-500.0,0.00041095,30]
[394260194,1763411459443,-500.0,0.00041095,30]
[394260195,1763411459452,-500.0,0.00041095,30]
[394260196,1763411459462,-500.0,0.00041095,30]
[394260197,1763411459475,-406.57031722,0.00041095,30]
[394260198,1763411459484,-500.0,0.00041095,30]
[394260199,1763411459493,-500.0,0.00041095,30]
[394260200,1763411459503,-162.95617709,0.00041095,30]
[394260201,1763411459512,-517.52780277,0.00041095,30]
[394260202,1763411459521,-508.22190349,0.00041095,30]
[394260203,1763411459530,-500.0,0.00041095,30]
[394260204,1763411459539,-500.0,0.00041095,30]
[394260205,1763411459548,-500.0,0.00041095,30]
[394260206,1763411459558,-558.90522229,0.00041095,30]
[394260207,1763411459567,-794.908084,0.00041095,30]
[394260208,1763411459576,-500.0,0.00041095,30]
[394260209,1763411459585,-794.908084,0.00041095,30]
[394260210,1763411459594,-250.91704864,0.00041095,30]
[394260211,1763411459604,-500.0,0.00041095,30]
[394260212,1763411459613,-500.0,0.00041095,30]
[394260213,1763411459622,-794.908084,0.00041095,30]
[394260214,1763411459631,-500.0,0.00041095,30]
[394260215,1763411459640,-500.0,0.00041095,30]
[394260216,1763411459649,-505.13781347,0.00041095,30]
[394260217,1763411459658,-500.0,0.00041095,30]
[394260218,1763411459669,-500.0,0.00041095,30]
[394260219,1763411459678,-500.0,0.00041095,30]
[394260220,1763411459687,-221.93146326,0.00041095,30]
[394260221,1763411459696,-504.68473326,0.00041095,30]
[394260222,1763411459705,-500.0,0.00041095,30]
[394260223,1763411459714,-500.0,0.00041095,30]
[394260224,1763411459723,-500.0,0.00041095,30]
[394260225,1763411459732,-500.0,0.00041095,30]
[394260227,1763411459741,-500.0,0.00041095,30]
[394260228,1763411459751,-500.0,0.00041095,30]
[394260229,1763411459760,-500.0,0.00041095,30]
[394260230,1763411459769,-504.68805628,0.00041095,30]
[394260231,1763411459778,-500.0,0.00041095,30]
[394260232,1763411459788,-500.0,0.00041095,30]
[394260233,1763411459797,-513.61975122,0.00041095,30]
[394260234,1763411459807,-500.0,0.00041095,30]
[394260235,1763411459816,-489.64749692,0.00041095,30]
[394260236,1763411459825,-500.0,0.00041095,30]
[394260237,1763411459835,-286.47980682,0.00041095,30]
[394260238,1763411459844,-500.0,0.00041095,30]
[394260239,1763411459853,-500.0,0.00041095,30]
[394260240,1763411459862,-308.44291569,0.00041095,30]
[394260241,1763411459871,-502.03870315,0.00041095,30]
[394260242,1763411459881,-500.0,0.00041095,30]
[394260243,1763411459891,-500.0,0.00041095,30]
[394260244,1763411459902,-500.0,0.00041095,30]